bitfinex-derivatives/quotes_ETHF0:USTF0_20251117
["timestamp","ask_amount","ask_price","bid_price","bid_amount"]
[1763417318807,0.53842,3012.3,3012.0,0.39829794]
[1763417319013,0.53842,3012.3,3012.2,0.2519]
[1763417319214,0.53845,3012.1,3012.0,0.14639794]
[1763417319614,0.53839,3012.5,3012.2,0.2519]
[1763417319916,0.00381026,3012.7,3012.6,0.2519]
[1763417321912,0.54215026,3012.7,3012.6,0.2519]
[1763417322312,0.00381026,3012.7,3012.6,0.2519]
[1763417324714,0.54215026,3012.7,3012.6,0.2519]
[1763417324915,0.00381026,3012.7,3012.0,0.14639794]
[1763417325416,0.53843,3012.3,3012.0,0.14639794]
[1763417325616,0.00381026,3012.7,3012.0,0.14639794]
[1763417325816,0.53842,3012.3,3012.2,0.2519]
[1763417327820,0.53836,3012.6,3012.5,0.1422]
[1763417328220,0.68496,3012.6,3012.5,0.1422]
[1763417329114,0.00381026,3012.7,3012.6,0.2519]
[1763417332323,5.07892031,3014.4,3013.0,0.3941]
[1763417332324,3.888,3014.0,3013.0,0.3941]
[1763417332624,7.65492031,3014.4,3013.1,0.2519]
[1763417332625,0.53824,3013.3,3013.1,0.2519]
[1763417333019,0.53822,3013.4,3013.1,0.2519]
[1763417333225,0.53824,3013.3,3013.1,0.2519]
[1763417333525,0.53825,3013.2,3013.1,0.2519]
[1763417333711,0.00336094,3013.3,3013.1,0.2519]
[1763417334131,0.54159094,3013.3,3013.2,0.2519]
[1763417335828,0.53827,3013.1,3013.0,0.1422]
[1763417336016,0.54161094,3013.3,3013.0,0.1422]
[1763417336218,0.53827,3013.2,3013.1,0.2519]
[1763417337422,0.53827,3013.2,3013.0,0.1422]
[1763417337423,0.68867,3013.2,3013.0,0.1422]
[1763417337726,0.00336094,3013.3,3013.0,0.1422]
[1763417337727,0.53827,3013.1,3013.0,0.3864]
[1763417338227,0.53826,3013.2,3013.1,0.2442]
[1763417338428,0.00336094,3013.3,3013.2,0.2442]
[1763417338630,0.54159094,3013.3,3013.2,0.2442]
[1763417339730,0.69229094,3013.3,3013.2,0.2442]
[1763417339923,0.53827,3013.1,3013.0,0.3864]
[1763417340118,0.53826,3013.2,3013.0,0.3864]
[1763417340532,0.00336094,3013.3,3013.2,0.2442]
[1763417340833,0.15406094,3013.3,3013.2,0.2442]
[1763417341024,0.00336094,3013.3,3013.2,0.2442]
[1763417341224,0.54159094,3013.3,3013.2,0.2442]
[1763417341422,0.00336094,3013.3,3013.2,0.2442]
[1763417342234,0.00498058,3013.5,3013.4,0.2442]
[1763417342832,0.15568058,3013.5,3013.4,0.2442]
[1763417343130,0.00498058,3013.5,3013.4,0.2442]
[1763417343338,0.00811254,3013.5,3013.4,0.2442]
[1763417349737,1.254e-05,3013.5,3013.4,0.2442]
[1763417350043,3.888,3014.1,3014.0,0.3922]
[1763417350234,0.53804,3014.4,3014.2,0.2442]
[1763417350634,0.53806,3014.3,3014.2,0.2442]
[1763417350846,0.69671,3015.1,3015.0,0.3922]
[1763417351144,0.69910555,3015.1,3015.0,0.148]
[1763417351337,0.16119555,3015.1,3015.0,0.148]
[1763417351545,0.00239555,3015.1,3015.0,0.3922]
[1763417356450,0.16119555,3015.1,3014.7,0.00498058]
[1763417356654,0.1588,3014.8,3014.7,0.24918058]
[1763417356843,0.53783,3015.6,3015.0,0.3922]
[1763417357049,0.53788,3015.3,3015.0,0.3922]
[1763417357352,0.69668,3015.3,3015.2,0.2442]
[1763417357555,0.1588,3015.3,3015.2,0.2442]
[1763417357855,0.53783,3015.6,3015.5,0.3892]
[1763417358047,0.00252978,3015.6,3015.5,0.3892]
[1763417358246,0.16182978,3015.6,3015.5,0.3892]
[1763417358449,0.00252978,3015.6,3015.5,0.3892]
[1763417359448,0.5377,3016.3,3016.0,0.145]
[1763417359749,0.5377,3016.3,3016.2,0.2307]
[1763417360255,0.53768,3016.4,3016.3,0.2307]
[1763417360452,0.54008075,3016.4,3016.3,0.2307]
[1763417361151,0.70188075,3016.4,3016.3,0.2307]
[1763417361355,0.54010075,3016.4,3016.1,0.2307]
[1763417361549,0.53772,3016.3,3016.1,0.2307]
[1763417361846,0.53772,3016.3,3016.2,0.2307]
[1763417362051,0.00240075,3016.4,3016.2,0.2307]
[1763417362356,0.5377,3016.3,3016.2,0.2307]
[1763417362558,0.6995,3016.3,3016.2,0.2307]
[1763417363258,0.1618,3016.3,3016.2,0.2307]
[1763417363449,0.6995,3016.3,3016.2,0.2307]
[1763417365055,0.00240075,3016.4,3016.2,0.2307]
[1763417365359,0.70190075,3016.4,3016.3,0.2307]
[1763417365855,2.96596297,3018.4,3016.3,0.2307]
[1763417365856,0.237,3017.4,3016.5,0.145]
[1763417366063,0.77463,3016.7,3016.6,0.00497224]
[1763417366249,0.1509,3017.0,3016.0,0.145]
[1763417366250,0.1509,3016.5,3016.0,0.145]
[1763417366553,0.1509,3017.0,3016.7,0.2307]
[1763417366554,0.53761,3016.8,3016.7,0.2307]
[1763417366758,0.1509,3017.5,3016.9,0.2413]
[1763417367060,0.53752,3017.3,3017.1,0.2413]
[1763417367259,0.15901383,3017.5,3017.1,0.2413]
[1763417367459,0.53754,3017.2,3017.1,0.2413]
[1763417367655,0.91527,3017.0,3016.9,0.00497224]
[1763417368153,1.19092031,3018.3,3016.9,0.24627224]
[1763417368359,4.29414815,3019.5,3017.5,0.1387]
[1763417368558,0.1418,3019.5,3017.6,0.65]
[1763417368750,0.1418,3019.5,3018.1,40.8]
[1763417368949,0.1418,3019.5,3018.5,0.87222986]
[1763417369150,0.1418,3019.5,3018.6,8.105]
[1763417369362,0.09310572,3019.2,3018.6,8.105]
[1763417369565,0.1418,3019.0,3018.5,0.00786841]
[1763417370361,0.09310572,3019.2,3018.5,0.00786841]
[1763417370762,0.1418,3019.5,3018.5,6.00786841]
[1763417370952,0.1418,3020.0,3018.5,6.00786841]
[1763417370953,0.1418,3020.0,3018.8,0.87222986]
[1763417371156,0.1418,3020.0,3018.8,4.18342986]
[1763417371357,0.1418,3020.0,3018.8,3.3112]
[1763417371661,0.1418,3020.0,3018.7,0.87222986]
[1763417371859,0.14553839,3020.0,3018.6,0.87222986]
[1763417372060,0.68258839,3020.0,3018.7,4.535]
[1763417372265,0.00373839,3020.0,3018.7,4.3935991]
[1763417372457,0.14553839,3020.0,3018.9,0.87222986]
[1763417372657,0.1418,3019.5,3018.5,0.00786841]
[1763417372854,0.53718,3019.3,3018.5,0.00786841]
[1763417373057,0.1418,3019.5,3018.5,0.00786841]
[1763417373756,0.67893,3019.5,3018.5,0.00786841]
[1763417374465,0.1418,3019.5,3018.5,0.00786841]
[1763417375969,0.1418,3019.5,3018.6,8.117]
[1763417376168,0.1418,3019.5,3018.7,8.117]
[1763417376466,0.1418,3019.5,3018.5,0.00786841]
[1763417376665,0.1418,3019.5,3018.6,8.117]
[1763417377967,0.1418,3019.5,3018.5,0.00786841]
[1763417377968,0.3777,3018.6,3018.5,0.00786841]
[1763417378268,0.3777,3018.6,3017.1,3.737]
[1763417378269,0.1418,3018.0,3017.1,3.737]
[1763417378869,0.1418,3018.0,3016.5,0.87222986]
[1763417379062,0.1418,3018.0,3016.6,8.115]
[1763417379263,0.1418,3017.4,3017.0,0.00497224]
[1763417379569,0.14579854,3017.4,3017.0,0.00497224]
[1763417379963,0.14579854,3017.4,3017.0,0.27478705]
[1763417380973,0.14579854,3017.4,3017.0,0.00497224]
[1763417381173,0.2359,3017.1,3017.0,0.00497224]
[1763417381671,0.14579854,3017.4,3017.0,0.00497224]
[1763417382961,0.00399854,3017.4,3017.0,0.00497224]
[1763417383771,0.14579854,3017.4,3017.0,0.00497224]
[1763417384370,0.14579854,3017.4,3017.1,8.112]
[1763417385071,0.00399854,3017.4,3017.1,8.112]
[1763417387275,0.00399854,3017.4,3017.1,8.98422986]
[1763417388276,0.00399854,3017.4,3017.2,0.87222986]
[1763417389471,0.00399854,3017.4,3017.3,0.87222986]
[1763417390475,0.1418,3018.6,3017.3,0.87222986]
[1763417390476,0.1418,3020.5,3017.4,12.6456]
[1763417390682,0.1418,3020.5,3018.1,0.87337323]
[1763417390970,0.1418,3020.5,3017.5,3.312]
[1763417390971,0.1418,3019.2,3018.8,0.87337323]
[1763417391573,0.14607446,3019.2,3018.8,0.87766749]
[1763417393279,0.14607446,3019.2,3018.9,0.87337323]
[1763417393579,0.14607446,3019.2,3019.0,8.142]
[1763417394478,0.14607446,3019.2,3018.9,0.87337323]
[1763417394679,0.2359,3019.0,3018.8,8.14129426]
[1763417395374,0.2359,3019.0,3018.8,9.01466749]
[1763417395569,0.2359,3019.0,3018.8,0.87766749]
[1763417395776,0.2359,3019.0,3018.8,9.01366749]
[1763417397379,0.2359,3019.0,3018.9,0.87337323]
[1763417398681,0.2359,3019.0,3018.8,0.00429426]
[1763417398682,0.2359,3018.9,3018.8,0.00429426]
[1763417402485,0.14607446,3019.2,3018.8,0.00429426]
[1763417405086,0.1418,3019.5,3019.1,0.87337323]
[1763417406175,0.14426793,3019.5,3019.1,0.87337323]
[1763417408676,0.14426793,3019.5,3019.2,0.87337323]
[1763417408879,0.14426793,3019.5,3019.3,0.87337323]
[1763417409980,0.14426793,3019.5,3019.4,0.87337323]
[1763417411078,0.14426793,3019.5,3019.3,1.1808958]
[1763417411278,0.14426793,3019.5,3019.3,1.79878369]
[1763417411883,0.00246793,3019.5,3019.3,1.79878369]
[1763417412078,0.1379,3019.5,3019.4,8.022]
[1763417412386,0.1379,3019.5,3019.4,9.82078369]
[1763417413087,0.2349,3019.3,3019.2,1.79878369]
[1763417413279,0.2349,3019.3,3019.2,1.16768196]
[1763417415086,0.1418,3019.8,3019.2,1.16768196]
[1763417415285,0.3728,3019.5,3019.3,1.16768196]
[1763417415486,0.2349,3019.4,3019.3,1.16768196]
[1763417415681,0.1379,3019.5,3019.3,1.16768196]
[1763417415893,0.2349,3019.4,3019.3,1.16768196]
[1763417416085,0.23813119,3019.4,3019.3,1.16768196]
[1763417417382,0.2349,3019.3,3019.2,1.79878369]
[1763417417590,0.2349,3019.1,3019.0,1.79878369]
[1763417418487,0.1408,3019.0,3018.8,0.00429426]
[1763417419077,0.1408,3019.0,3018.8,8.11429426]
[1763417419078,0.2442,3018.9,3018.8,8.11429426]
[1763417419690,0.1408,3019.0,3018.8,8.11429426]
[1763417419985,0.1408,3019.0,3018.8,8.11329426]
[1763417419986,0.2442,3018.9,3018.8,8.11329426]
[1763417421189,0.2442,3018.9,3018.8,0.00429426]
[1763417425191,0.1408,3019.0,3018.8,0.00429426]
[1763417426182,0.14377463,3019.0,3018.8,0.00429426]
[1763417427289,0.14377463,3019.0,3018.8,2.39247164]
[1763417427488,0.14377463,3019.0,3018.9,2.38817738]
[1763417427791,0.1408,3019.5,3018.9,2.38817738]
[1763417427993,0.1408,3019.5,3019.4,1.76392209]
[1763417428891,0.14441452,3019.5,3019.4,1.76392209]
[1763417429088,0.14441452,3019.5,3019.1,2.38817738]
[1763417430293,0.14441452,3019.5,3019.2,2.38817738]
[1763417430694,0.14441452,3019.5,3019.3,2.38817738]
[1763417430899,0.14441452,3019.5,3019.4,8.098]
[1763417431096,0.14441452,3019.5,3019.4,10.48617738]
[1763417434996,0.2497,3019.4,3019.3,2.38817738]
[1763417435194,0.2497,3019.4,3019.0,2.98522173]
[1763417435195,0.2497,3019.3,3019.1,1.76477968]
[1763417435393,0.2497,3019.2,3019.1,1.76477968]
[1763417436198,0.25220411,3019.2,3019.1,1.76477968]
[1763417437401,0.2497,3019.1,3019.0,1.17738484]
[1763417438899,0.1939,3018.9,3018.8,0.20484652]
[1763417439104,6.00250411,3019.2,3018.7,0.88851759]
[1763417439296,0.00250411,3019.2,3018.7,0.00497224]
[1763417439901,0.00250411,3019.2,3018.7,0.00733088]
[1763417444004,2.3329727,3019.2,3018.7,0.00733088]
[1763417445006,2.3329727,3019.2,3018.2,0.88354535]
[1763417445204,2.3329727,3019.2,3018.0,0.1495]
[1763417445205,2.3329727,3019.2,3018.0,1.03304535]
[1763417445507,0.00250411,3019.2,3019.0,0.1495]
[1763417446116,0.00250411,3019.2,3019.0,0.15376081]
[1763417448802,0.00250411,3019.2,3017.0,0.1495]
[1763417448803,13.39,3019.1,3017.0,0.1495]
[1763417449008,6.31,3019.0,3017.0,0.1495]
[1763417449300,1.18408042,3018.6,3017.0,0.1495]
[1763417449810,1.18408042,3018.1,3017.5,0.00497224]
[1763417450111,0.85148485,3018.0,3017.1,0.53755]
[1763417450315,0.85148485,3017.9,3017.1,0.53755]
[1763417450511,0.85148485,3017.8,3017.1,0.53755]
[1763417450711,0.85148485,3017.7,3017.1,0.53755]
[1763417451011,0.85148485,3017.6,3017.5,0.1495]
[1763417451204,0.00497224,3017.7,3017.5,0.1495]
[1763417452616,0.85645709,3017.7,3016.5,0.68715]
[1763417452913,0.85148485,3017.6,3016.6,0.53764]
[1763417453104,0.85148485,3017.6,3016.7,0.53762]
[1763417453306,0.85148485,3017.5,3016.5,0.1495]
[1763417453511,0.85148485,3017.4,3017.2,0.53754]
[1763417453815,0.85148485,3017.3,3017.0,0.1495]
[1763417454116,0.85148485,3017.2,3017.0,0.1495]
[1763417454309,0.00497224,3017.7,3017.0,0.1495]
[1763417454506,0.00497224,3017.7,3016.7,0.00497224]
[1763417454711,1.18905266,3017.7,3016.7,0.00497224]
[1763417455012,0.84808537,3017.6,3016.7,0.00497224]
[1763417455214,0.84808537,3017.5,3016.7,0.00497224]
[1763417455407,0.84808537,3017.4,3016.7,0.00497224]
[1763417455608,0.84808537,3017.3,3016.7,0.00497224]
[1763417455819,0.84808537,3017.2,3017.0,0.1495]
[1763417456111,0.84808537,3017.1,3016.7,0.00497224]
[1763417456315,0.84808537,3017.0,3016.7,0.00497224]
[1763417456503,0.84808537,3016.9,3016.7,0.00497224]
[1763417456707,0.84808537,3016.8,3016.7,0.00497224]
[1763417456909,0.00406543,3017.0,3016.7,0.00497224]
[1763417459022,0.00406543,3017.0,3016.9,0.2285]
[1763417460116,0.00497224,3017.7,3017.6,0.4232]
[1763417461019,0.00497224,3017.7,3017.6,6.4232]
[1763417461318,0.00777331,3017.7,3017.5,0.2402]
[1763417462820,0.00777331,3017.7,3017.6,0.4232]
[1763417466030,0.00777331,3017.7,3017.5,0.2402]
[1763417469237,0.85606165,3017.7,3017.5,0.2402]
[1763417469428,3.18653024,3017.7,3017.5,0.2402]
[1763417469623,0.84828834,3017.6,3017.5,0.2402]
[1763417470234,2.03236876,3017.6,3017.5,0.2402]
[1763417470737,2.03236876,3017.6,3017.5,0.6634]
[1763417470936,0.84828834,3017.6,3017.5,0.6634]
[1763417471239,2.03236876,3017.6,3017.5,0.2402]
[1763417472036,2.03236876,3017.6,3017.5,0.6634]
[1763417472337,1.18408042,3018.0,3017.9,0.4232]
[1763417472538,1.18408042,3018.2,3018.1,0.4232]
[1763417472739,1.76694059,3018.4,3018.1,0.4232]
[1763417472740,1.18408042,3018.3,3018.1,0.4232]
[1763417473036,1.18408042,3018.4,3018.1,0.4232]
[1763417473338,1.18797866,3018.4,3018.3,0.4232]
[1763417473737,1.60977866,3018.4,3018.3,0.4232]
[1763417474141,0.00389824,3018.4,3018.3,0.4232]
[1763417475136,1.18408042,3019.3,3019.2,0.4232]
[1763417475339,1.18408042,3019.3,3019.0,0.2402]
[1763417475340,1.18408042,3019.4,3019.3,0.4232]
[1763417475538,1.18408042,3019.5,3019.3,0.4232]
[1763417475838,0.4218,3019.7,3019.6,0.4232]
[1763417476034,0.4218,3019.7,3019.0,0.2402]
[1763417476235,0.4218,3019.7,3019.0,0.24785796]
[1763417476236,0.42911388,3019.7,3019.0,0.24785796]
[1763417484340,0.86971819,3019.6,3019.0,0.24785796]
[1763417484643,0.00731388,3019.7,3019.0,0.24785796]
[1763417486239,0.87703201,3019.7,3019.0,0.24785796]
[1763417486437,1.30681813,3019.6,3019.5,0.4328]
[1763417488441,1.30681813,3019.6,3019.5,0.4046]
[1763417488842,1.77280903,3021.3,3020.4,0.4046]
[1763417489042,1.77280903,3021.3,3020.0,0.2466]
[1763417489043,0.6766,3020.5,3020.0,0.2466]
[1763417489249,0.6766,3020.5,3019.5,0.236]
[1763417489442,0.6766,3020.5,3020.4,0.4046]
[1763417489648,3.2078,3021.6,3021.4,0.4046]
[1763417489849,0.4241,3021.3,3020.5,0.246]
[1763417490154,0.4241,3021.3,3020.0,0.2466]
[1763417490949,0.4241,3021.3,3020.3,0.00497224]
[1763417493056,0.4241,3020.4,3020.3,0.00497224]
[1763417493250,0.2525,3020.0,3019.0,0.2402]
[1763417494153,0.00497224,3019.8,3019.2,0.00497224]
[1763417496558,0.4241,3019.3,3019.2,0.00497224]
[1763417496859,0.42759134,3019.3,3019.2,0.00497224]
[1763417497951,0.00349134,3019.3,3019.2,0.40957224]
[1763417500259,0.42759134,3019.3,3019.2,0.00497224]
[1763417500564,0.42759134,3019.3,3019.2,0.40957224]
[1763417501154,0.00349134,3019.3,3019.2,0.40957224]
[1763417501351,0.42907224,3019.8,3019.2,0.00497224]
[1763417501564,0.84006901,3019.7,3019.2,0.00497224]
[1763417501750,0.4241,3019.3,3019.2,0.00497224]
[1763417502157,0.4241,3019.3,3019.2,0.40957224]
[1763417502357,0.42824766,3019.3,3019.2,0.40957224]
[1763417502760,0.00414766,3019.3,3019.2,0.40957224]
[1763417504866,0.84514911,3019.3,3019.2,0.40957224]
[1763417505062,0.00414766,3019.3,3019.2,0.40957224]
[1763417505857,0.84514911,3019.3,3019.2,0.40957224]
[1763417506054,0.00414766,3019.3,3019.2,0.40957224]
[1763417506865,0.84514911,3019.3,3019.2,0.40957224]
[1763417507062,0.00414766,3019.3,3019.2,0.40957224]
[1763417507770,0.00497224,3019.8,3019.7,0.1236]
[1763417507962,0.2525,3020.5,3019.7,0.1236]
[1763417507963,0.2525,3020.0,3019.7,0.1236]
[1763417508772,0.2525,3020.0,3019.2,0.00497224]
[1763417508773,0.25553986,3020.0,3019.9,0.1236]
[1763417509675,0.00303986,3020.0,3019.9,0.1236]
[1763417510367,0.4241,3020.8,3019.3,8.147]
[1763417510765,0.6766,3021.0,3020.9,0.1236]
[1763417510970,0.6766,3021.0,3019.4,40.8]
[1763417511277,0.68157224,3020.5,3019.2,0.00497224]
[1763417514567,0.2525,3019.5,3019.2,0.00497224]
[1763417514767,0.4241,3019.3,3019.2,0.00497224]
[1763417515375,0.2525,3018.5,3017.5,0.1236]
[1763417516471,0.00497224,3018.3,3018.2,0.1236]
[1763417518275,0.50907224,3018.3,3017.7,0.00497224]
[1763417519074,0.5041,3017.8,3017.7,0.00497224]
[1763417519277,0.2885,3018.0,3017.7,0.00497224]
[1763417519477,0.5041,3017.8,3017.7,0.00497224]
[1763417519864,1.32921437,3017.8,3017.7,0.00497224]
[1763417521274,1.32921437,3017.8,3017.5,0.0040295]
[1763417521275,0.2885,3017.5,3016.5,0.1672]
[1763417521673,0.2885,3017.5,3016.5,0.44246673]
[1763417522278,0.2885,3017.5,3016.7,0.00497224]
[1763417523477,0.00497224,3018.3,3018.2,0.2908]
[1763417523677,0.82357818,3018.9,3018.4,0.2908]
[1763417523979,0.2885,3019.0,3017.5,0.1236]
[1763417524171,0.2885,3019.0,3017.5,4.1746]
[1763417524697,0.2885,3018.5,3017.9,0.00497224]
[1763417526672,0.7926,3018.0,3017.9,0.00497224]
[1763417526870,0.2885,3018.0,3017.9,0.29087224]
[1763417527477,0.7926,3018.0,3017.9,0.00497224]
[1763417527678,0.2885,3018.5,3018.4,0.2859]
[1763417528879,0.00497224,3018.6,3018.5,0.2859]
[1763417531181,0.2885,3018.5,3017.9,0.00497224]
[1763417532773,0.00497224,3018.6,3018.5,0.2859]
[1763417535284,0.00238757,3019.0,3018.9,0.2859]
[1763417535491,0.00238757,3019.0,3018.9,0.29005822]
[1763417536187,0.2885,3020.0,3019.4,0.2809]
[1763417536687,0.00497224,3019.8,3019.4,0.2809]
[1763417537079,0.2921254,3019.5,3019.4,0.2809]
[1763417538185,0.00497224,3019.8,3019.7,0.1726]
[1763417538388,0.45787224,3019.8,3019.4,0.00497224]
[1763417538695,0.00497224,3019.8,3019.4,2.34597224]
[1763417538886,0.00497224,3019.8,3019.7,0.1726]
[1763417539082,0.00866547,3019.8,3019.7,0.1726]
[1763417539697,0.00866547,3019.8,3019.7,0.440069]
[1763417540489,0.00866547,3019.8,3019.7,41.240069]
[1763417540687,0.2885,3020.5,3019.7,41.240069]
[1763417540889,2.85386848,3022.0,3019.7,41.240069]
[1763417540890,0.81989485,3020.9,3019.8,3.318]
[1763417541090,0.2607,3022.5,3020.6,2.3316467]
[1763417541285,0.2607,3022.5,3020.7,13.448]
[1763417541486,0.2607,3022.5,3021.6,1.16199412]
[1763417541683,0.00236905,3022.5,3021.7,8.18096393]
[1763417541882,0.00236905,3022.5,3021.9,1.16199412]
[1763417542187,0.2607,3023.5,3021.7,11.48976393]
[1763417542188,0.2607,3023.5,3021.8,1.16199412]
[1763417542388,0.2607,3023.5,3021.7,8.18096393]
[1763417543190,0.26380375,3023.5,3021.7,8.18096393]
[1763417544090,0.26380375,3023.5,3021.7,0.00496393]
[1763417544395,0.26380375,3023.5,3021.8,0.111]
[1763417545799,0.2607,3022.2,3021.7,0.00496393]
[1763417548792,0.6869,3021.8,3021.7,0.00496393]
[1763417551793,0.4347,3021.0,3020.8,5.429]
[1763417551991,0.4347,3021.6,3020.8,5.429]
[1763417552797,0.00493622,3021.5,3020.9,0.00496393]
[1763417553101,0.4347,3021.0,3020.9,0.00496393]
[1763417554794,0.6869,3020.9,3020.8,0.0025936]
[1763417555098,0.4347,3021.0,3019.9,11.929]
[1763417555099,0.4347,3020.0,3019.9,11.929]
[1763417555403,0.4347,3020.0,3019.0,8.159]
[1763417555701,0.4347,3020.0,3019.0,8.4297858]
[1763417555901,0.00496393,3019.8,3019.2,0.00496393]
[1763417557899,0.00496393,3019.8,3019.0,8.16162876]
[1763417557900,0.6869,3019.1,3019.0,0.00262876]
[1763417558108,0.69066143,3019.1,3019.0,0.00262876]
[1763417558402,6.69066143,3019.1,3017.4,1.16199412]
[1763417558595,0.69066143,3019.1,3017.5,1.648]
[1763417558997,0.69066143,3019.1,3018.0,0.00496393]
[1763417559394,0.69066143,3019.1,3018.0,0.00815294]
[1763417560394,0.69066143,3019.1,3018.0,0.27117486]
[1763417560595,0.00376143,3019.1,3018.0,0.00815294]
[1763417562815,0.00376143,3019.1,3018.0,0.27925359]
[1763417564818,0.00496393,3019.8,3018.1,4.21218322]
[1763417565126,0.4347,3022.0,3018.6,4.47999412]
[1763417565308,0.4347,3022.0,3018.1,24.0180215]
[1763417565309,0.4347,3022.0,3020.0,1.16199412]
[1763417565506,0.4347,3022.0,3020.2,1.74299119]
[1763417565707,0.4347,3022.0,3020.6,1.16199412]
[1763417565919,0.4347,3022.0,3020.7,1.16199412]
[1763417566310,0.00387642,3022.0,3020.7,1.16573996]
[1763417566628,0.4347,3022.5,3021.0,0.00496393]
[1763417566810,0.4347,3023.0,3021.2,1.16199412]
[1763417567015,0.4347,3023.0,3021.1,6.572]
[1763417567016,0.4347,3023.0,3021.3,1.16199412]
[1763417567210,0.4347,3023.0,3021.4,3.3088]
[1763417567415,0.43702031,3023.0,3021.3,1.16199412]
[1763417567615,0.00493622,3022.5,3021.3,1.16199412]
[1763417567814,0.43702031,3023.0,3021.3,1.16199412]
[1763417568215,0.43702031,3023.0,3021.4,3.76993799]
[1763417568526,0.43702031,3023.0,3021.3,1.16199412]
[1763417568722,0.43702031,3023.0,3021.2,1.16199412]
[1763417570222,0.4347,3024.7,3021.3,9.01905066]
[1763417570430,0.4347,3024.7,3021.4,1.16199412]
[1763417571022,0.4347,3024.7,3021.5,41.96199412]
[1763417571218,0.43834488,3023.5,3021.5,41.96199412]
[1763417571824,0.43834488,3023.5,3021.6,20.129]
[1763417572627,0.43834488,3023.5,3021.5,40.8]
[1763417573123,0.4347,3022.2,3021.6,8.2]
[1763417576326,0.4347,3022.2,3021.0,0.00496393]
[1763417576523,0.4347,3022.2,3021.1,1.344]
[1763417576827,0.4347,3022.2,3021.0,0.00496393]
[1763417576828,0.3929,3021.6,3021.2,0.96]
[1763417577531,0.3929,3021.6,3021.0,0.00496393]
[1763417577727,0.3929,3021.6,3021.1,8.193]
[1763417578023,0.3929,3021.6,3021.0,0.00496393]
[1763417578226,0.6592,3020.8,3020.7,0.00374584]
[1763417578528,0.66294888,3020.8,3020.7,0.00374584]
[1763417582035,0.3929,3020.4,3018.7,1.16199412]
[1763417582232,0.3929,3020.4,3018.8,7.173]
[1763417582430,0.4347,3022.2,3018.8,11.925]
[1763417582643,0.3929,3023.4,3019.5,1.16199412]
[1763417582928,0.3929,3023.4,3018.9,7.65570156]
[1763417582929,0.3929,3023.4,3021.6,0.863808]
[1763417583132,0.0346,3023.7,3021.7,14.156808]
[1763417583333,0.0346,3023.7,3021.8,2.231808]
[1763417583530,0.00496393,3023.1,3022.4,0.00496393]
[1763417583732,0.03834531,3023.7,3022.4,0.00496393]
[1763417583929,0.03834531,3023.7,3022.5,1.457]
[1763417584431,0.03834531,3023.7,3022.5,42.52880783]
[1763417585330,0.03834531,3023.7,3022.5,41.07180783]
[1763417585632,0.3929,3023.3,3022.6,8.321]
[1763417586134,0.3929,3023.3,3022.4,0.00496393]
[1763417586135,0.3929,3022.6,3022.4,0.00496393]
[1763417586438,0.3929,3021.9,3021.1,41.663808]
[1763417586630,0.3929,3022.6,3021.6,0.26296096]
[1763417586829,0.3929,3022.2,3021.8,8.32209598]
[1763417587834,0.3929,3022.2,3021.8,0.00409598]
[1763417588035,0.3929,3022.2,3021.9,8.314]
[1763417588932,0.3929,3022.2,3021.8,0.00409598]
[1763417589334,0.3929,3021.6,3021.0,1.26931598]
[1763417589527,0.3929,3021.6,3021.1,8.31]
[1763417589926,0.3929,3021.6,3021.0,1.26931598]
[1763417590131,0.3929,3021.6,3021.2,8.309]
[1763417590335,0.3929,3021.6,3021.2,8.31250648]
[1763417590535,0.3929,3021.6,3021.2,9.17631448]
[1763417590839,0.3929,3022.2,3021.2,9.17631448]
[1763417591141,0.3929,3022.2,3021.3,0.863808]
[1763417591344,0.3929,3022.2,3021.4,0.863808]
[1763417592234,0.3929,3022.2,3021.5,0.863808]
[1763417593236,0.3929,3022.2,3021.7,0.863808]
[1763417594233,0.3929,3022.2,3021.9,0.863808]
[1763417594840,0.6592,3021.9,3021.8,0.863808]
[1763417595033,0.6592,3021.7,3021.6,9.167808]
[1763417595237,0.6592,3021.7,3021.6,0.863808]
[1763417599243,0.3929,3022.2,3021.6,0.863808]
[1763417599444,0.3929,3022.2,3021.8,0.863808]
[1763417599646,0.3929,3022.2,3021.6,0.87137795]
[1763417599647,0.6829,3021.7,3021.6,0.87137795]
[1763417599937,0.422,3021.5,3021.4,1.16199412]
[1763417600138,0.42471198,3021.5,3021.4,1.16199412]
[1763417600641,0.00271198,3021.5,3021.4,1.74299119]
[1763417600841,0.00271198,3021.5,3021.2,0.00350648]
[1763417601248,0.3929,3022.2,3021.2,0.00350648]
[1763417601435,0.3929,3022.2,3022.0,1.74288958]
[1763417601636,0.3929,3022.2,3022.1,8.278]
[1763417601845,0.3929,3022.2,3022.1,10.02088958]
[1763417602342,0.39679102,3022.2,3022.1,10.02088958]
[1763417602932,0.00389102,3022.2,3022.1,10.02088958]
[1763417604045,0.00389102,3022.2,3022.1,1.74288958]
[1763417604240,0.00389102,3022.2,3022.1,10.01688958]
[1763417604437,0.422,3022.0,3021.9,1.74288958]
[1763417604637,0.422,3022.0,3021.9,9.43193691]
[1763417604838,0.422,3022.0,3021.7,1.74288958]
[1763417605037,0.422,3022.0,3021.9,1.16193689]
[1763417605234,1.1049,3022.0,3021.9,1.16193689]
[1763417605434,0.6829,3021.9,3021.7,1.16193689]
[1763417605746,0.6829,3021.9,3021.8,6.744]
[1763417606047,0.6829,3021.7,3021.6,1.16193689]
[1763417606247,0.6829,3021.6,3021.5,9.42893689]
[1763417606449,0.6829,3021.6,3021.5,8.267]
[1763417606643,0.6829,3021.6,3021.5,9.13896013]
[1763417607449,0.6829,3021.6,3021.5,0.87196013]
[1763417609150,0.6779,3021.3,3021.2,0.00350648]
[1763417609450,0.3986,3021.5,3021.2,0.00350648]
[1763417611860,0.6779,3021.3,3021.2,0.00350648]
[1763417613752,0.6779,3021.3,3021.2,6.48e-06]
[1763417614652,0.6779,3020.9,3020.8,1.74288958]
[1763417614852,0.2801886,3020.8,3020.7,1.74288958]
[1763417615359,0.6779,3020.7,3020.6,1.74288958]
[1763417615543,0.6779,3020.6,3020.5,1.74288958]
[1763417615947,0.6779,3020.6,3020.5,1.74610868]
[1763417616452,0.6779,3020.6,3020.5,2.00911878]
[1763417619053,0.40356393,3021.0,3020.5,6.2662292]